Workbook

Sheet NIB (hidden)
B1: 1 | C1: 2 | D1: 3 | E1: 4 | F1: 5 | G1: 6 | H1: 7 | I1: 8 | J1: 9 | K1: 10 | L1: 11 | M1: 12 | N1: 13 | O1: 14 | P1: 15 | Q1: 16 | R1: 17 | S1: 18 | T1: 19 | U1: 20 | V1: 21 | W1: 22 | X1: 23 | Y1: 24
A2: A | B2: 0+1 | F2: kont3-2 | J2: bliz3wt3 | N2: kont24+1 | R2: bliz24-2 | V2: inok24wt3 | Z2: - 2 red?itvi -- za preverjanje u?inkovitosti vzorca
A3: B | B3: 0+2 | F3: kont3-3 | J3: bliz3coi1 | N3: kont24+2 | R3: bliz24-3 | V3: inok24coi1 | Z3: - ?e k preve? odstopa od k umeritvene, se vzorec izlo?i
A4: C | B4: 0+3 | F4: kont3wt1 | J4: bliz3coi2 | N4: kont24+3 | R4: bliz24wt1 | V4: inok24coi2
A5: D | B5: 0-1 | F5: kont3wt2 | J5: bliz3coi3 | N5: kont24-1 | R5: bliz24wt2 | V5: inok24coi3
A6: E | B6: 0-2 | F6: kont3wt3 | J6: inok3+1 | N6: kont24-2 | R6: bliz24wt3
A7: F | B7: 0-3 | F7: kont3coi1 | J7: inok3+2 | N7: kont24-3 | R7: bliz24coi1
A8: G | B8: 0wt1 | F8: kont3coi2 | J8: inok3+3 | N8: kont24wt1 | R8: bliz24coi2
A9: H | B9: 0wt2 | F9: kont3coi3 | J9: inok3-1 | N9: kont24wt2 | R9: bliz24coi3
A10: I | B10: 0wt3 | F10: bliz3+1 | J10: inok3-2 | N10: kont24wt3 | R10: inok24+1
A11: J | B11: 0coi1 | F11: bliz3+2 | J11: inok3-3 | N11: kont24coi1 | R11: inok24+2
A12: K | B12: 0coi2 | F12: bliz3+3 | J12: inok3wt1 | N12: kont24coi2 | R12: inok24+3
A13: L | B13: 0coi3 | F13: bliz3-1 | J13: inok3wt2 | N13: kont24coi3 | R13: inok24-1 | X13: ntc
A14: M | B14: kont3+1 | F14: bliz3-2 | J14: inok3wt3 | N14: bliz24+1 | R14: inok24-2 | X14: 10 x | Z14: umeritvena krivulja kalibracijskega vzorca
A15: N | B15: kont3+2 | F15: bliz3-3 | J15: inok3coi1 | N15: bliz24+2 | R15: inok24-3 | X15: 100 x | Z15: - glede na to ra?unamo abs. koli?ine cDNA
A16: O | B16: kont3+3 | F16: bliz3wt1 | J16: inok3coi2 | N16: bliz24+3 | R16: inok24wt1 | X16: 1000 x
A17: P | B17: kont3-1 | F17: bliz3wt2 | J17: inok3coi3 | N17: bliz24-1 | R17: inok24wt2 | X17: 10000 x
A19: bolj logi?no PO SKUPINAH:
B20: 1 | C20: 2 | D20: 3 | E20: 4 | F20: 5 | G20: 6 | H20: 7 | I20: 8 | J20: 9 | K20: 10 | L20: 11 | M20: 12 | N20: 13 | O20: 14 | P20: 15 | Q20: 16 | R20: 17 | S20: 18 | T20: 19 | U20: 20 | V20: 21 | W20: 22 | X20: 23 | Y20: 24
A21: A | B21: 0+1 | F21: bliz24+2 | J21: inok3-3 | N21: bliz3wt1 | R21: 0coi2 | V21: bliz24coi3 | Z21: - 2 red?itvi -- za preverjanje u?inkovitosti vzorca
A22: B | B22: 0+2 | F22: bliz24+3 | J22: kont24-1 | N22: bliz3wt2 | R22: 0coi3 | V22: inok24coi1 | Z22: - ?e k preve? odstopa od k umeritvene, se vzorec izlo?i
A23: C | B23: 0+3 | F23: inok24+1 | J23: kont24-2 | N23: bliz3wt3 | R23: kont3coi1 | V23: inok24coi2
A24: D | B24: kont3+1 | F24: inok24+2 | J24: kont24-3 | N24: inok3wt1 | R24: kont3coi2 | V24: inok24coi3
A25: E | B25: kont3+2 | F25: inok24+3 | J25: bliz24-1 | N25: inok3wt2 | R25: kont3coi3
A26: F | B26: kont3+3 | F26: 0-1 | J26: bliz24-2 | N26: inok3wt3 | R26: bliz3coi1
A27: G | B27: bliz3+1 | F27: 0-2 | J27: bliz24-3 | N27: kont24wt1 | R27: bliz3coi2
A28: H | B28: bliz3+2 | F28: 0-3 | J28: inok24-1 | N28: kont24wt2 | R28: bliz3coi3
A29: I | B29: bliz3+3 | F29: kont3-1 | J29: inok24-2 | N29: kont24wt3 | R29: inok3coi1
A30: J | B30: inok3+1 | F30: kont3-2 | J30: inok24-3 | N30: bliz24wt1 | R30: inok3coi2
A31: K | B31: inok3+2 | F31: kont3-3 | J31: 0wt1 | N31: bliz24wt2 | R31: inok3coi3
A32: L | B32: inok3+3 | F32: bliz3-1 | J32: 0wt2 | N32: bliz24wt3 | R32: kont24coi1 | X32: ntc | Z32: umeritvena krivulja kalibracijskega vzorca
A33: M | B33: kont24+1 | F33: bliz3-2 | J33: 0wt3 | N33: inok24wt1 | R33: kont24coi2 | X33: 10 x | Z33: - glede na to ra?unamo abs. koli?ine cDNA
A34: N | B34: kont24+2 | F34: bliz3-3 | J34: kont3wt1 | N34: inok24wt2 | R34: kont24coi3 | X34: 100 x
A35: O | B35: kont24+3 | F35: inok3-1 | J35: kont3wt2 | N35: inok24wt3 | R35: bliz24coi1 | X35: 1000 x
A36: P | B36: bliz24+1 | F36: inok3-2 | J36: kont3wt3 | N36: 0coi1 | R36: bliz24coi2 | X36: 10000 x
B38: NA VSAKI PLOŠ?I?I BI MERIL SAMO 1 GEN - v enem run-u bi pomeril vse vzorce!!!

Sheet LC480 (hidden)
B1: References | H1: Targets
B2: 18S | D2: COX | F2: EF-2 | H2: ETR1 | J2: ETR4 | L2: CTR1 | N2: EIN3 | P2: ERF1 | R2: WIPK | T2: JAR1 | V2: coi1 | X2: StPPS3
B3: 1 | C3: 2 | D3: 3 | E3: 4 | F3: 5 | G3: 6 | H3: 7 | I3: 8 | J3: 9 | K3: 10 | L3: 11 | M3: 12 | N3: 13 | O3: 14 | P3: 15 | Q3: 16 | R3: 17 | S3: 18 | T3: 19 | U3: 20 | V3: 21 | W3: 22 | X3: 23 | Y3: 24
A4: A | B4: 0+1 | D4: 0+1 | F4: 0+1 | H4: 0+1 | J4: 0+1 | L4: 0+1 | N4: 0+1 | P4: 0+1 | R4: 0+1 | T4: 0+1 | V4: 0+1 | X4: 0+1
A5: B | B5: 0+2 | D5: 0+2 | F5: 0+2 | H5: 0+2 | J5: 0+2 | L5: 0+2 | N5: 0+2 | P5: 0+2 | R5: 0+2 | T5: 0+2 | V5: 0+2 | X5: 0+2
A6: C | B6: 0+3 | D6: 0+3 | F6: 0+3 | H6: 0+3 | J6: 0+3 | L6: 0+3 | N6: 0+3 | P6: 0+3 | R6: 0+3 | T6: 0+3 | V6: 0+3 | X6: 0+3
A7: D | B7: kont3+1 | D7: kont3+1 | F7: kont3+1 | H7: kont3+1 | J7: kont3+1 | L7: kont3+1 | N7: kont3+1 | P7: kont3+1 | R7: kont3+1 | T7: kont3+1 | V7: kont3+1 | X7: kont3+1
A8: E | B8: kont3+2 | D8: kont3+2 | F8: kont3+2 | H8: kont3+2 | J8: kont3+2 | L8: kont3+2 | N8: kont3+2 | P8: kont3+2 | R8: kont3+2 | T8: kont3+2 | V8: kont3+2 | X8: kont3+2
A9: F | B9: kont3+3 | D9: kont3+3 | F9: kont3+3 | H9: kont3+3 | J9: kont3+3 | L9: kont3+3 | N9: kont3+3 | P9: kont3+3 | R9: kont3+3 | T9: kont3+3 | V9: kont3+3 | X9: kont3+3
A10: G | B10: bliz3+1 | D10: bliz3+1 | F10: bliz3+1 | H10: bliz3+1 | J10: bliz3+1 | L10: bliz3+1 | N10: bliz3+1 | P10: bliz3+1 | R10: bliz3+1 | T10: bliz3+1 | V10: bliz3+1 | X10: bliz3+1
A11: H | B11: bliz3+2 | D11: bliz3+2 | F11: bliz3+2 | H11: bliz3+2 | J11: bliz3+2 | L11: bliz3+2 | N11: bliz3+2 | P11: bliz3+2 | R11: bliz3+2 | T11: bliz3+2 | V11: bliz3+2 | X11: bliz3+2
A12: I | B12: bliz3+3 | D12: bliz3+3 | F12: bliz3+3 | H12: bliz3+3 | J12: bliz3+3 | L12: bliz3+3 | N12: bliz3+3 | P12: bliz3+3 | R12: bliz3+3 | T12: bliz3+3 | V12: bliz3+3 | X12: bliz3+3
A13: J | B13: inok3+1 | D13: inok3+1 | F13: inok3+1 | H13: inok3+1 | J13: inok3+1 | L13: inok3+1 | N13: inok3+1 | P13: inok3+1 | R13: inok3+1 | T13: inok3+1 | V13: inok3+1 | X13: inok3+1
A14: K | B14: inok3+2 | D14: inok3+2 | F14: inok3+2 | H14: inok3+2 | J14: inok3+2 | L14: inok3+2 | N14: inok3+2 | P14: inok3+2 | R14: inok3+2 | T14: inok3+2 | V14: inok3+2 | X14: inok3+2
A15: L | B15: inok3+3 | D15: inok3+3 | F15: inok3+3 | H15: inok3+3 | J15: inok3+3 | L15: inok3+3 | N15: inok3+3 | P15: inok3+3 | R15: inok3+3 | T15: inok3+3 | V15: inok3+3 | X15: inok3+3
A16: M | B16: ntc | D16: ntc | F16: ntc | H16: ntc | J16: ntc | L16: ntc | N16: ntc | P16: ntc | R16: ntc | T16: ntc | V16: ntc | X16: ntc
A17: N
A18: O | B18: ="PosCal"&" "&B2 -> PosCal 18S | D18: ="PosCal"&" "&D2 -> PosCal COX | F18: ="PosCal"&" "&F2 -> PosCal EF-2 | H18: ="PosCal"&" "&H2 -> PosCal ETR1 | J18: ="PosCal"&" "&J2 -> PosCal ETR4 | L18: ="PosCal"&" "&L2 -> PosCal CTR1 | N18: ="PosCal"&" "&N2 -> PosCal EIN3 | P18: ="PosCal"&" "&P2 -> PosCal ERF1 | R18: ="PosCal"&" "&R2 -> PosCal WIPK | T18: ="PosCal"&" "&T2 -> PosCal JAR1 | V18: ="PosCal"&" "&V2 -> PosCal coi1 | X18: ="PosCal"&" "&X2 -> PosCal StPPS3 | Z18: - kalibracijski vzorec - pool, za primerjavo med ploš?icami
A19: P
B21: References | H21: Targets
B22: 18S | D22: COX | F22: EF-2 | H22: ETR1 | J22: ETR4 | L22: CTR1 | N22: EIN3 | P22: ERF1 | R22: WIPK | T22: JAR1 | V22: coi1 | X22: StPPS3
B23: 1 | C23: 2 | D23: 3 | E23: 4 | F23: 5 | G23: 6 | H23: 7 | I23: 8 | J23: 9 | K23: 10 | L23: 11 | M23: 12 | N23: 13 | O23: 14 | P23: 15 | Q23: 16 | R23: 17 | S23: 18 | T23: 19 | U23: 20 | V23: 21 | W23: 22 | X23: 23 | Y23: 24
A24: A | B24: kont24+1 | D24: kont24+1 | F24: kont24+1 | H24: kont24+1 | J24: kont24+1 | L24: kont24+1 | N24: kont24+1 | P24: kont24+1 | R24: kont24+1 | T24: kont24+1 | V24: kont24+1 | X24: kont24+1
A25: B | B25: kont24+2 | D25: kont24+2 | F25: kont24+2 | H25: kont24+2 | J25: kont24+2 | L25: kont24+2 | N25: kont24+2 | P25: kont24+2 | R25: kont24+2 | T25: kont24+2 | V25: kont24+2 | X25: kont24+2
A26: C | B26: kont24+3 | D26: kont24+3 | F26: kont24+3 | H26: kont24+3 | J26: kont24+3 | L26: kont24+3 | N26: kont24+3 | P26: kont24+3 | R26: kont24+3 | T26: kont24+3 | V26: kont24+3 | X26: kont24+3
A27: D | B27: bliz24+1 | D27: bliz24+1 | F27: bliz24+1 | H27: bliz24+1 | J27: bliz24+1 | L27: bliz24+1 | N27: bliz24+1 | P27: bliz24+1 | R27: bliz24+1 | T27: bliz24+1 | V27: bliz24+1 | X27: bliz24+1
A28: E | B28: bliz24+2 | D28: bliz24+2 | F28: bliz24+2 | H28: bliz24+2 | J28: bliz24+2 | L28: bliz24+2 | N28: bliz24+2 | P28: bliz24+2 | R28: bliz24+2 | T28: bliz24+2 | V28: bliz24+2 | X28: bliz24+2
A29: F | B29: bliz24+3 | D29: bliz24+3 | F29: bliz24+3 | H29: bliz24+3 | J29: bliz24+3 | L29: bliz24+3 | N29: bliz24+3 | P29: bliz24+3 | R29: bliz24+3 | T29: bliz24+3 | V29: bliz24+3 | X29: bliz24+3
A30: G | B30: inok24+1 | D30: inok24+1 | F30: inok24+1 | H30: inok24+1 | J30: inok24+1 | L30: inok24+1 | N30: inok24+1 | P30: inok24+1 | R30: inok24+1 | T30: inok24+1 | V30: inok24+1 | X30: inok24+1
A31: H | B31: inok24+2 | D31: inok24+2 | F31: inok24+2 | H31: inok24+2 | J31: inok24+2 | L31: inok24+2 | N31: inok24+2 | P31: inok24+2 | R31: inok24+2 | T31: inok24+2 | V31: inok24+2 | X31: inok24+2
A32: I | B32: inok24+3 | D32: inok24+3 | F32: inok24+3 | H32: inok24+3 | J32: inok24+3 | L32: inok24+3 | N32: inok24+3 | P32: inok24+3 | R32: inok24+3 | T32: inok24+3 | V32: inok24+3 | X32: inok24+3
A33: J | B33: ntc | D33: ntc | F33: ntc | H33: ntc | J33: ntc | L33: ntc | N33: ntc | P33: ntc | R33: ntc | T33: ntc | V33: ntc | X33: ntc
A34: K
A35: L
A36: M
A37: N
A38: O | B38: ="PosCal"&" "&B22 -> PosCal 18S | D38: ="PosCal"&" "&D22 -> PosCal COX | F38: ="PosCal"&" "&F22 -> PosCal EF-2 | H38: ="PosCal"&" "&H22 -> PosCal ETR1 | J38: ="PosCal"&" "&J22 -> PosCal ETR4 | L38: ="PosCal"&" "&L22 -> PosCal CTR1 | N38: ="PosCal"&" "&N22 -> PosCal EIN3 | P38: ="PosCal"&" "&P22 -> PosCal ERF1 | R38: ="PosCal"&" "&R22 -> PosCal WIPK | T38: ="PosCal"&" "&T22 -> PosCal JAR1 | V38: ="PosCal"&" "&V22 -> PosCal coi1 | X38: ="PosCal"&" "&X22 -> PosCal StPPS3
A39: P
B40: Slabosti te postavitve:
B41: - pripravljanje 6 mixov (60ul/ampl) na eno ploš?ico - SLABŠE ZA PIPETIRANJE Z ROBOTOM
B42: - na dveh ploš?icah analiziram samo 21 vzorcev in 3 tar?ne gene -> cel exp (84 vzorcev, 36 genov): 2*4*12 = 96 ploš?ic
B43: - ne moreš vedet ali gre pri vzorcu, ki odstopa za biol. variabilnost ali inhibicije!
B45: Prednosti te postavitve:
B46: - avtomati?na obdelava podatkov v Roche software-u
B47: - "by the book" postopek relativne kvantifikacije
B49: LEGENDA VZORCEV:
B50: - tretma: kont, bliz, inok | H50: 3
B51: - ?asovna to?ka: 0, 3h, 24h | H51: 2
B52: - skupina: +, - , wt, coi | H52: 4
B53: - bio. pon.: 1, 2, 3 | H53: 3
G54: sum: | H54: =H53*H52*H51*H50 + H53*H52 -> 84

Sheet LC480+EFF (hidden)
B1: References | N1: Targets
B2: 18S_1k | D2: 18S_10k | F2: COX_1k | H2: COX_10k | J2: EF-2_10 | L2: EF-2_100 | N2: ETR1_10 | P2: ETR1_100 | R2: ETR4_10 | T2: ETR4_100 | V2: CTR1_10 | X2: CTR1_100
B3: 1 | C3: 2 | D3: 3 | E3: 4 | F3: 5 | G3: 6 | H3: 7 | I3: 8 | J3: 9 | K3: 10 | L3: 11 | M3: 12 | N3: 13 | O3: 14 | P3: 15 | Q3: 16 | R3: 17 | S3: 18 | T3: 19 | U3: 20 | V3: 21 | W3: 22 | X3: 23 | Y3: 24
A4: A | B4: 0+1 | D4: 0+1 | F4: 0+1 | H4: 0+1 | J4: 0+1 | L4: 0+1 | N4: 0+1 | P4: 0+1 | R4: 0+1 | T4: 0+1 | V4: 0+1 | X4: 0+1
A5: B | B5: 0+2 | D5: 0+2 | F5: 0+2 | H5: 0+2 | J5: 0+2 | L5: 0+2 | N5: 0+2 | P5: 0+2 | R5: 0+2 | T5: 0+2 | V5: 0+2 | X5: 0+2
A6: C | B6: 0+3 | D6: 0+3 | F6: 0+3 | H6: 0+3 | J6: 0+3 | L6: 0+3 | N6: 0+3 | P6: 0+3 | R6: 0+3 | T6: 0+3 | V6: 0+3 | X6: 0+3
A7: D | B7: kont3+1 | D7: kont3+1 | F7: kont3+1 | H7: kont3+1 | J7: kont3+1 | L7: kont3+1 | N7: kont3+1 | P7: kont3+1 | R7: kont3+1 | T7: kont3+1 | V7: kont3+1 | X7: kont3+1
A8: E | B8: kont3+2 | D8: kont3+2 | F8: kont3+2 | H8: kont3+2 | J8: kont3+2 | L8: kont3+2 | N8: kont3+2 | P8: kont3+2 | R8: kont3+2 | T8: kont3+2 | V8: kont3+2 | X8: kont3+2
A9: F | B9: kont3+3 | D9: kont3+3 | F9: kont3+3 | H9: kont3+3 | J9: kont3+3 | L9: kont3+3 | N9: kont3+3 | P9: kont3+3 | R9: kont3+3 | T9: kont3+3 | V9: kont3+3 | X9: kont3+3
A10: G | B10: bliz3+1 | D10: bliz3+1 | F10: bliz3+1 | H10: bliz3+1 | J10: bliz3+1 | L10: bliz3+1 | N10: bliz3+1 | P10: bliz3+1 | R10: bliz3+1 | T10: bliz3+1 | V10: bliz3+1 | X10: bliz3+1
A11: H | B11: bliz3+2 | D11: bliz3+2 | F11: bliz3+2 | H11: bliz3+2 | J11: bliz3+2 | L11: bliz3+2 | N11: bliz3+2 | P11: bliz3+2 | R11: bliz3+2 | T11: bliz3+2 | V11: bliz3+2 | X11: bliz3+2
A12: I | B12: bliz3+3 | D12: bliz3+3 | F12: bliz3+3 | H12: bliz3+3 | J12: bliz3+3 | L12: bliz3+3 | N12: bliz3+3 | P12: bliz3+3 | R12: bliz3+3 | T12: bliz3+3 | V12: bliz3+3 | X12: bliz3+3
A13: J | B13: inok3+1 | D13: inok3+1 | F13: inok3+1 | H13: inok3+1 | J13: inok3+1 | L13: inok3+1 | N13: inok3+1 | P13: inok3+1 | R13: inok3+1 | T13: inok3+1 | V13: inok3+1 | X13: inok3+1
A14: K | B14: inok3+2 | D14: inok3+2 | F14: inok3+2 | H14: inok3+2 | J14: inok3+2 | L14: inok3+2 | N14: inok3+2 | P14: inok3+2 | R14: inok3+2 | T14: inok3+2 | V14: inok3+2 | X14: inok3+2
A15: L | B15: inok3+3 | D15: inok3+3 | F15: inok3+3 | H15: inok3+3 | J15: inok3+3 | L15: inok3+3 | N15: inok3+3 | P15: inok3+3 | R15: inok3+3 | T15: inok3+3 | V15: inok3+3 | X15: inok3+3
A16: M | B16: ntc | D16: ntc | F16: ntc | H16: ntc | J16: ntc | L16: ntc | N16: ntc | P16: ntc | R16: ntc | T16: ntc | V16: ntc | X16: ntc
A17: N
A18: O | B18: ="PosCal"&" "&B2 -> PosCal 18S_1k | D18: ="PosCal"&" "&D2 -> PosCal 18S_10k | F18: ="PosCal"&" "&F2 -> PosCal COX_1k | H18: ="PosCal"&" "&H2 -> PosCal COX_10k | J18: ="PosCal"&" "&J2 -> PosCal EF-2_10 | L18: ="PosCal"&" "&L2 -> PosCal EF-2_100 | N18: ="PosCal"&" "&N2 -> PosCal ETR1_10 | P18: ="PosCal"&" "&P2 -> PosCal ETR1_100 | R18: ="PosCal"&" "&R2 -> PosCal ETR4_10 | T18: ="PosCal"&" "&T2 -> PosCal ETR4_100 | V18: ="PosCal"&" "&V2 -> PosCal CTR1_10 | X18: ="PosCal"&" "&X2 -> PosCal CTR1_100 | Z18: - kalibracijski vzorec - pool, za primerjavo med ploš?icai
A19: P
B21: References | N21: Targets
B22: 18S_1k | D22: 18S_10k | F22: COX_1k | H22: COX_10k | J22: EF-2_10 | L22: EF-2_100 | N22: ETR1_10 | P22: ETR1_100 | R22: ETR4_10 | T22: ETR4_100 | V22: CTR1_10 | X22: CTR1_100
B23: 1 | C23: 2 | D23: 3 | E23: 4 | F23: 5 | G23: 6 | H23: 7 | I23: 8 | J23: 9 | K23: 10 | L23: 11 | M23: 12 | N23: 13 | O23: 14 | P23: 15 | Q23: 16 | R23: 17 | S23: 18 | T23: 19 | U23: 20 | V23: 21 | W23: 22 | X23: 23 | Y23: 24
A24: A | B24: kont24+1 | D24: kont24+1 | F24: kont24+1 | H24: kont24+1 | J24: kont24+1 | L24: kont24+1 | N24: kont24+1 | P24: kont24+1 | R24: kont24+1 | T24: kont24+1 | V24: kont24+1 | X24: kont24+1
A25: B | B25: kont24+2 | D25: kont24+2 | F25: kont24+2 | H25: kont24+2 | J25: kont24+2 | L25: kont24+2 | N25: kont24+2 | P25: kont24+2 | R25: kont24+2 | T25: kont24+2 | V25: kont24+2 | X25: kont24+2
A26: C | B26: kont24+3 | D26: kont24+3 | F26: kont24+3 | H26: kont24+3 | J26: kont24+3 | L26: kont24+3 | N26: kont24+3 | P26: kont24+3 | R26: kont24+3 | T26: kont24+3 | V26: kont24+3 | X26: kont24+3
A27: D | B27: bliz24+1 | D27: bliz24+1 | F27: bliz24+1 | H27: bliz24+1 | J27: bliz24+1 | L27: bliz24+1 | N27: bliz24+1 | P27: bliz24+1 | R27: bliz24+1 | T27: bliz24+1 | V27: bliz24+1 | X27: bliz24+1
A28: E | B28: bliz24+2 | D28: bliz24+2 | F28: bliz24+2 | H28: bliz24+2 | J28: bliz24+2 | L28: bliz24+2 | N28: bliz24+2 | P28: bliz24+2 | R28: bliz24+2 | T28: bliz24+2 | V28: bliz24+2 | X28: bliz24+2
A29: F | B29: bliz24+3 | D29: bliz24+3 | F29: bliz24+3 | H29: bliz24+3 | J29: bliz24+3 | L29: bliz24+3 | N29: bliz24+3 | P29: bliz24+3 | R29: bliz24+3 | T29: bliz24+3 | V29: bliz24+3 | X29: bliz24+3
A30: G | B30: inok24+1 | D30: inok24+1 | F30: inok24+1 | H30: inok24+1 | J30: inok24+1 | L30: inok24+1 | N30: inok24+1 | P30: inok24+1 | R30: inok24+1 | T30: inok24+1 | V30: inok24+1 | X30: inok24+1
A31: H | B31: inok24+2 | D31: inok24+2 | F31: inok24+2 | H31: inok24+2 | J31: inok24+2 | L31: inok24+2 | N31: inok24+2 | P31: inok24+2 | R31: inok24+2 | T31: inok24+2 | V31: inok24+2 | X31: inok24+2
A32: I | B32: inok24+3 | D32: inok24+3 | F32: inok24+3 | H32: inok24+3 | J32: inok24+3 | L32: inok24+3 | N32: inok24+3 | P32: inok24+3 | R32: inok24+3 | T32: inok24+3 | V32: inok24+3 | X32: inok24+3
A33: J | B33: ntc | D33: ntc | F33: ntc | H33: ntc | J33: ntc | L33: ntc | N33: ntc | P33: ntc | R33: ntc | T33: ntc | V33: ntc | X33: ntc
A34: K
A35: L
A36: M
A37: N
A38: O | B38: ="PosCal"&" "&B22 -> PosCal 18S_1k | D38: ="PosCal"&" "&D22 -> PosCal 18S_10k | F38: ="PosCal"&" "&F22 -> PosCal COX_1k | H38: ="PosCal"&" "&H22 -> PosCal COX_10k | J38: ="PosCal"&" "&J22 -> PosCal EF-2_10 | L38: ="PosCal"&" "&L22 -> PosCal EF-2_100 | N38: ="PosCal"&" "&N22 -> PosCal ETR1_10 | P38: ="PosCal"&" "&P22 -> PosCal ETR1_100 | R38: ="PosCal"&" "&R22 -> PosCal ETR4_10 | T38: ="PosCal"&" "&T22 -> PosCal ETR4_100 | V38: ="PosCal"&" "&V22 -> PosCal CTR1_10 | X38: ="PosCal"&" "&X22 -> PosCal CTR1_100
A39: P
B40: Slabosti te postavitve:
B41: - pripravljanje 12 mixov (60ul/ampl) na eno ploš?ico - SLABŠE ZA PIPETIRANJE Z ROBOTOM
B42: - na dveh ploš?icah analiziram samo 21 vzorcev in 9 tar?nih genov -> cel exp (84 vzorcev, 36 genov): 2*4*4 = 32 ploš?ic
B44: Prednosti te postavitve:
B45: - avtomati?na obdelava podatkov v Roche software-u
B46: - "by the book" postopek relativne kvantifikacije
B48: LEGENDA VZORCEV:
B49: - tretma: kont, bliz, inok | H49: 3
B50: - ?asovna to?ka: 0, 3h, 24h | H50: 2
B51: - skupina: +, - , wt, coi | H51: 4
B52: - bio. pon.: 1, 2, 3 | H52: 3
G53: sum: | H53: =H52*H51*H50*H49 + H52*H51 -> 84

Sheet RNAinVAL_stages_amplicons
AL1: ORIG. SORT | AM1: SORT | AN1: Well Position | AO1: sample name | AP1: RP4 | AQ1: JHBP | AR1: Rel quant
D2: RP4 | P2: JHBP | AL2: 1 | AM2: 1 | AN2: A1 | AO2: egg early 3 | AP2: 17.3 | AQ2: 30.17 | AR2: 100000
D3: 1 | E3: 2 | F3: 3 | G3: 4 | H3: 5 | I3: 6 | J3: 7 | K3: 8 | L3: 9 | M3: 10 | N3: 11 | O3: 12 | P3: 13 | Q3: 14 | R3: 15 | S3: 16 | T3: 17 | U3: 18 | V3: 19 | W3: 20 | X3: 21 | Y3: 22 | Z3: 23 | AA3: 24 | AL3: 2 | AM3: 2 | AN3: A2 | AO3: egg early 3 | AP3: 17.42 | AQ3: 30.62 | AR3: 100000
C4: A | D4: 10x | E4: 10x | F4: 100x | G4: 100x | H4: 10x | I4: 10x | J4: 100x | K4: 100x | L4: 10x | M4: 10x | N4: 100x | O4: 100x | P4: 10x | Q4: 10x | R4: 100x | S4: 100x | T4: 10x | U4: 10x | V4: 100x | W4: 100x | X4: 10x | Y4: 10x | Z4: 100x | AA4: 100x | AL4: 3 | AM4: 3 | AN4: A3 | AO4: egg early 3 | AP4: 21.67 | AQ4: 34.97 | AR4: 10000
C5: B | D5: 10x | E5: 10x | F5: 100x | G5: 100x | H5: 10x | I5: 10x | J5: 100x | K5: 100x | L5: 10x | M5: 10x | N5: 100x | O5: 100x | P5: 10x | Q5: 10x | R5: 100x | S5: 100x | T5: 10x | U5: 10x | V5: 100x | W5: 100x | X5: 10x | Y5: 10x | Z5: 100x | AA5: 100x | AL5: 4 | AM5: 4 | AN5: A4 | AO5: egg early 3 | AP5: 21.62 | AQ5: 34.84 | AR5: 10000
C6: C | D6: 10x | E6: 10x | F6: 100x | G6: 100x | H6: 10x | I6: 10x | J6: 100x | K6: 100x | L6: 10x | M6: 10x | N6: 100x | O6: 100x | P6: 10x | Q6: 10x | R6: 100x | S6: 100x | T6: 10x | U6: 10x | V6: 100x | W6: 100x | X6: 10x | Y6: 10x | Z6: 100x | AA6: 100x | AL6: 13 | AM6: 5 | AN6: B1 | AO6: egg early 4 | AP6: 17.18 | AQ6: 30.66 | AR6: 100000
C7: D | D7: 10x | E7: 10x | F7: 100x | G7: 100x | H7: 10x | I7: 10x | J7: 100x | K7: 100x | L7: 10x | M7: 10x | N7: 100x | O7: 100x | P7: 10x | Q7: 10x | R7: 100x | S7: 100x | T7: 10x | U7: 10x | V7: 100x | W7: 100x | X7: 10x | Y7: 10x | Z7: 100x | AA7: 100x | AC7: lukenj/amplikon: | AE7: 160 | AG7: (2 x 2 x 39 vz) | AL7: 14 | AM7: 6 | AN7: B2 | AO7: egg early 4 | AP7: 17.25 | AQ7: 30.97 | AR7: 100000
C8: E | D8: 10x | E8: 10x | F8: 100x | G8: 100x | H8: 10x | I8: 10x | J8: 100x | K8: 100x | L8: 10x | M8: 10x | N8: 100x | O8: 100x | P8: 10x | Q8: 10x | R8: 100x | S8: 100x | T8: 10x | U8: 10x | V8: 100x | W8: 100x | X8: 10x | Y8: 10x | Z8: 100x | AA8: 100x | AC8: NTC, umeritvena: | AE8: 10 | AL8: 15 | AM8: 7 | AN8: B3 | AO8: egg early 4 | AP8: 21.34 | AR8: 10000
C9: F | D9: 10x | E9: 10x | F9: 100x | G9: 100x | H9: 10x | I9: 10x | J9: 100x | K9: 100x | L9: 10x | M9: 10x | N9: 100x | O9: 100x | P9: 10x | Q9: 10x | R9: 100x | S9: 100x | T9: 10x | U9: 10x | V9: 100x | W9: 100x | X9: 10x | Y9: 10x | Z9: 100x | AA9: 100x | AC9: procent izgub: | AE9: 20 | AF9: % | AL9: 16 | AM9: 8 | AN9: B4 | AO9: egg early 4 | AP9: 21.22 | AQ9: 34.15 | AR9: 10000
C10: G | D10: 10x | E10: 10x | F10: 100x | G10: 100x | H10: 10x | I10: 10x | J10: 100x | K10: 100x | L10: 10x | M10: 10x | N10: 100x | O10: 100x | P10: 10x | Q10: 10x | R10: 100x | S10: 100x | T10: 10x | U10: 10x | V10: 100x | W10: 100x | X10: 10x | Y10: 10x | Z10: 100x | AA10: 100x | AC10: št. reakcij z upoštevano izgubo: | AE10: =(AE7+AE8)*(100+AE9)/100 -> 204 | AL10: 25 | AM10: 9 | AN10: C1 | AO10: eggs early 2 | AP10: 15.68 | AQ10: 26.71 | AR10: 100000
C11: H | D11: 10x | E11: 10x | F11: 100x | G11: 100x | H11: 10x | I11: 10x | J11: 100x | K11: 100x | L11: NTC | M11: NTC | N11: NTC | O11: NTC | P11: 10x | Q11: 10x | R11: 100x | S11: 100x | T11: 10x | U11: 10x | V11: 100x | W11: 100x | X11: NTC | Y11: NTC | Z11: NTC | AA11: NTC | AL11: 26 | AM11: 10 | AN11: C2 | AO11: eggs early 2 | AP11: 15.82 | AQ11: 27.07 | AR11: 100000
C12: I | D12: 10x | E12: 10x | F12: 100x | G12: 100x | H12: 10x | I12: 10x | J12: 100x | K12: 100x | P12: 10x | Q12: 10x | R12: 100x | S12: 100x | T12: 10x | U12: 10x | V12: 100x | W12: 100x | AL12: 27 | AM12: 11 | AN12: C3 | AO12: eggs early 2 | AP12: 19.49 | AQ12: 28.96 | AR12: 10000
C13: J | D13: 10x | E13: 10x | F13: 100x | G13: 100x | H13: 10x | I13: 10x | J13: 100x | K13: 100x | P13: 10x | Q13: 10x | R13: 100x | S13: 100x | T13: 10x | U13: 10x | V13: 100x | W13: 100x | AL13: 28 | AM13: 12 | AN13: C4 | AO13: eggs early 2 | AP13: 19.53 | AQ13: 28.88 | AR13: 10000
C14: K | D14: 10x | E14: 10x | F14: 100x | G14: 100x | H14: 10x | I14: 10x | J14: 100x | K14: 100x | P14: 10x | Q14: 10x | R14: 100x | S14: 100x | T14: 10x | U14: 10x | V14: 100x | W14: 100x | AL14: 37 | AM14: 13 | AN14: D1 | AO14: eggs early 3 | AP14: 18.15 | AQ14: 28.93 | AR14: 100000
C15: L | D15: 10x | E15: 10x | F15: 100x | G15: 100x | H15: 10x | I15: 10x | J15: 100x | K15: 100x | P15: 10x | Q15: 10x | R15: 100x | S15: 100x | T15: 10x | U15: 10x | V15: 100x | W15: 100x | AL15: 38 | AM15: 14 | AN15: D2 | AO15: eggs early 3 | AP15: 18.15 | AQ15: 29.36 | AR15: 100000
C16: M | D16: 10x | E16: 10x | F16: 100x | G16: 100x | H16: 10x | I16: 10x | J16: 100x | K16: 100x | P16: 10x | Q16: 10x | R16: 100x | S16: 100x | T16: 10x | U16: 10x | V16: 100x | W16: 100x | AC16: Syber Green | AD16: JHBP, LdRP4 | AL16: 39 | AM16: 15 | AN16: D3 | AO16: eggs early 3 | AP16: 22.36 | AQ16: 33.19 | AR16: 10000
C17: N | D17: 10x | E17: 10x | F17: 100x | G17: 100x | H17: 10x | I17: 10x | J17: 100x | K17: 100x | N17: NTC | O17: NTC | P17: 10x | Q17: 10x | R17: 100x | S17: 100x | T17: 10x | U17: 10x | V17: 100x | W17: 100x | Z17: NTC | AA17: NTC | AL17: 40 | AM17: 16 | AN17: D4 | AO17: eggs early 3 | AP17: 22.53 | AQ17: 33.17 | AR17: 10000
C18: O | D18: 10x | E18: 10x | F18: 100x | G18: 100x | H18: 10x | I18: 10x | J18: 100x | K18: 100x | L18: 10 | M18: 10 | N18: 100 | O18: 100 | P18: 10x | Q18: 10x | R18: 100x | S18: 100x | T18: 10x | U18: 10x | V18: 100x | W18: 100x | X18: 10 | Y18: 10 | Z18: 100 | AA18: 100 | AC18: no.: | AD18: 204 | AL18: 49 | AM18: 17 | AN18: E1 | AO18: egg late 1 | AP18: 15.62 | AQ18: 16.67 | AR18: 100000
C19: P | D19: 10x | E19: 10x | F19: 100x | G19: 100x | H19: 10x | I19: 10x | J19: 100x | K19: 100x | L19: 1000 | M19: 1000 | N19: 10k | O19: 10k | P19: 10x | Q19: 10x | R19: 100x | S19: 100x | T19: 10x | U19: 10x | V19: 100x | W19: 100x | X19: 1000 | Y19: 1000 | Z19: 10k | AA19: 10k | AC19: FP: | AD19: 300 nM | AE19: 0.05 | AL19: 50 | AM19: 18 | AN19: E2 | AO19: egg late 1 | AP19: 15.8 | AQ19: 16.72 | AR19: 100000
AC20: RP: | AD20: 300 nM | AE20: 0.05 | AL20: 51 | AM20: 19 | AN20: E3 | AO20: egg late 1 | AP20: 19.55 | AQ20: 20.46 | AR20: 10000
AL21: 52 | AM21: 20 | AN21: E4 | AO21: egg late 1 | AP21: 19.39 | AQ21: 20.51 | AR21: 10000
AL22: 61 | AM22: 21 | AN22: F1 | AO22: egg late 2 | AP22: 15.98 | AQ22: 17.76 | AR22: 100000
D23: redčenje cDNA pool-a za umeritveno krivuljo: -ročno 90 sigma dH2O + 10 POOL cDNA (od 2016) | AC23: UMM (2x) | AD23: =2.5*AD18 -> 510 | AL23: 62 | AM23: 22 | AN23: F2 | AO23: egg late 2 | AP23: 15.95 | AQ23: 17.78 | AR23: 100000
D24: redčenje cDNA vzorcev: - na robotu 45+5 ul; 2 redčini na isto plato | AC24: FP | AD24: =AE19*AD18 -> 10.2 | AG24: MasterMix used: | AL24: 63 | AM24: 23 | AN24: F3 | AO24: egg late 2 | AP24: 19.7 | AQ24: 21.83 | AR24: 10000
AC25: RP | AD25: =AE20*AD18 -> 10.2 | AG25: ABI SYBR power | AL25: 64 | AM25: 24 | AN25: F4 | AO25: egg late 2 | AP25: 19.72 | AQ25: 21.83 | AR25: 10000
AC26: water | AD26: =(5*AD18)-(SUM(AD23:AD25,AD27)) -> 81.6 | AL26: 73 | AM26: 25 | AN26: G1 | AO26: egg late 3 | AP26: 16.13 | AQ26: 17.3 | AR26: 100000
AC27: sample | AD27: =2*AD18 -> 408 | AL27: 74 | AM27: 26 | AN27: G2 | AO27: egg late 3 | AP27: 16.27 | AQ27: 17.53 | AR27: 100000
AC28: sum | AD28: =SUM(AD23:AD27) -> 1020 | AL28: 75 | AM28: 27 | AN28: G3 | AO28: egg late 3 | AP28: 20.14 | AQ28: 21.51 | AR28: 10000
AC29: pipet | AD29: 3 | AL29: 76 | AM29: 28 | AN29: G4 | AO29: egg late 3 | AP29: 20.07 | AQ29: 21.6 | AR29: 10000
AL30: 85 | AM30: 29 | AN30: H1 | AO30: neonatal 1 | AP30: 17.06 | AQ30: 17.58 | AR30: 100000
AL31: 86 | AM31: 30 | AN31: H2 | AO31: neonatal 1 | AP31: 17.01 | AQ31: 17.56 | AR31: 100000
AL32: 87 | AM32: 31 | AN32: H3 | AO32: neonatal 1 | AP32: 21.03 | AQ32: 21.71 | AR32: 10000
AL33: 88 | AM33: 32 | AN33: H4 | AO33: neonatal 1 | AP33: 21.01 | AQ33: 21.7 | AR33: 10000
AL34: 93 | AM34: 33 | AN34: I1 | AO34: neonatal 2 | AP34: 16.89 | AQ34: 18.64 | AR34: 100000
AL35: 94 | AM35: 34 | AN35: I2 | AO35: neonatal 2 | AP35: 16.92 | AQ35: 18.65 | AR35: 100000
AC36: primerji: | AL36: 95 | AM36: 35 | AN36: I3 | AO36: neonatal 2 | AP36: 19.91 | AQ36: 21.85 | AR36: 10000
AC37: Stock | AD37: Delovne raztopine za 5 ul reakcije: | AL37: 96 | AM37: 36 | AN37: I4 | AO37: neonatal 2 | AP37: 19.96 | AQ37: 21.9 | AR37: 10000
AC38: Primerji | AE38: priprava | AF38: uM | AG38: ul v mix | AH38: V reakcije | AI38: konc/reakcijo | AJ38: nM | AL38: 101 | AM38: 37 | AN38: J1 | AO38: neonatal 3 | AP38: 16.1 | AQ38: 16.88 | AR38: 100000
AC39: 100 uM | AD39: 30 uM | AE39: 30+70 | AF39: 30 | AG39: =AI39/(AF39/AH39) -> 0.15 | AH39: 5 | AI39: 0.9 | AJ39: =AF39*AG39/AH39*1000 -> 900 | AL39: 102 | AM39: 38 | AN39: J2 | AO39: neonatal 3 | AP39: 16.05 | AQ39: 16.95 | AR39: 100000
AF40: 30 | AG40: =AI40/(AF40/AH40) -> 0.1 | AH40: 5 | AI40: 0.6 | AJ40: =AF40*AG40/AH40*1000 -> 600 | AL40: 103 | AM40: 39 | AN40: J3 | AO40: neonatal 3 | AP40: 20.09 | AQ40: 21.29 | AR40: 10000
AF41: 30 | AG41: =AI41/(AF41/AH41) -> 0.05 | AH41: 5 | AI41: 0.3 | AJ41: =AF41*AG41/AH41*1000 -> 300 | AL41: 104 | AM41: 40 | AN41: J4 | AO41: neonatal 3 | AP41: 20.11 | AQ41: 21.3 | AR41: 10000
AC42: Sonda | AL42: 109 | AM42: 41 | AN42: K1 | AO42: 2nd larva 2 | AP42: 17.17 | AQ42: 15.33 | AR42: 100000
AC43: 100 uM | AD43: 10 uM | AE43: 10+90 | AF43: 10 | AG43: =AI43/(AF43/AH43) -> 0.125 | AH43: 5 | AI43: 0.25 | AJ43: =AF43*AG43/AH43*1000 -> 250 | AL43: 110 | AM43: 42 | AN43: K2 | AO43: 2nd larva 2 | AP43: 17.03 | AQ43: 15.49 | AR43: 100000
AF44: 10 | AG44: =AI44/(AF44/AH44) -> 0.075 | AH44: 5 | AI44: 0.15 | AJ44: =AF44*AG44/AH44*1000 -> 150 | AL44: 111 | AM44: 43 | AN44: K3 | AO44: 2nd larva 2 | AP44: 20.98 | AQ44: 19.74 | AR44: 10000
AL45: 112 | AM45: 44 | AN45: K4 | AO45: 2nd larva 2 | AP45: 20.98 | AQ45: 19.77 | AR45: 10000
AL46: 117 | AM46: 45 | AN46: L1 | AO46: 2nd larva 3 | AP46: 16.05 | AQ46: 14.17 | AR46: 100000
AL47: 118 | AM47: 46 | AN47: L2 | AO47: 2nd larva 3 | AP47: 16.01 | AQ47: 14.33 | AR47: 100000
AL48: 119 | AM48: 47 | AN48: L3 | AO48: 2nd larva 3 | AP48: 19.9 | AQ48: 18.39 | AR48: 10000
AL49: 120 | AM49: 48 | AN49: L4 | AO49: 2nd larva 3 | AP49: 19.99 | AQ49: 18.47 | AR49: 10000
AL50: 125 | AM50: 49 | AN50: M1 | AO50: 2nd larva 4 | AP50: 16.37 | AQ50: 14.52 | AR50: 100000
AL51: 126 | AM51: 50 | AN51: M2 | AO51: 2nd larva 4 | AP51: 16.33 | AQ51: 14.59 | AR51: 100000
AL52: 127 | AM52: 51 | AN52: M3 | AO52: 2nd larva 4 | AP52: 20.19 | AQ52: 18.62 | AR52: 10000
AL53: 128 | AM53: 52 | AN53: M4 | AO53: 2nd larva 4 | AP53: 20.18 | AQ53: 18.62 | AR53: 10000
AL54: 133 | AM54: 53 | AN54: N1 | AO54: 2nd larva 5 | AP54: 16.35 | AQ54: 15.18 | AR54: 100000
AL55: 134 | AM55: 54 | AN55: N2 | AO55: 2nd larva 5 | AP55: 16.27 | AQ55: 15.23 | AR55: 100000
AL56: 135 | AM56: 55 | AN56: N3 | AO56: 2nd larva 5 | AP56: 20.22 | AQ56: 19.33 | AR56: 10000
AL57: 136 | AM57: 56 | AN57: N4 | AO57: 2nd larva 5 | AP57: 20.18 | AQ57: 19.3 | AR57: 10000
AL58: 143 | AM58: 57 | AN58: O1 | AO58: 3rd larva 1 | AP58: 18.15 | AQ58: 16.02 | AR58: 100000
AL59: 144 | AM59: 58 | AN59: O2 | AO59: 3rd larva 1 | AP59: 18.12 | AQ59: 16.04 | AR59: 100000
AL60: 145 | AM60: 59 | AN60: O3 | AO60: 3rd larva 1 | AP60: 22.13 | AQ60: 19.99 | AR60: 10000
AL61: 146 | AM61: 60 | AN61: O4 | AO61: 3rd larva 1 | AP61: 22.17 | AQ61: 20 | AR61: 10000
AL62: 155 | AM62: 61 | AN62: P1 | AO62: 3rd larva 2 | AP62: 16.74 | AQ62: 13.99 | AR62: 100000
AL63: 156 | AM63: 62 | AN63: P2 | AO63: 3rd larva 2 | AP63: 16.73 | AQ63: 14.12 | AR63: 100000
AL64: 157 | AM64: 63 | AN64: P3 | AO64: 3rd larva 2 | AP64: 20.67 | AQ64: 18.12 | AR64: 10000
AL65: 158 | AM65: 64 | AN65: P4 | AO65: 3rd larva 2 | AP65: 20.66 | AQ65: 18.13 | AR65: 10000
AL66: 5 | AM66: 65 | AN66: A5 | AO66: 3rd larva 3 | AP66: 17.62 | AQ66: 15.92 | AR66: 100000
AL67: 6 | AM67: 66 | AN67: A6 | AO67: 3rd larva 3 | AP67: 17.26 | AQ67: 15.98 | AR67: 100000
AL68: 7 | AM68: 67 | AN68: A7 | AO68: 3rd larva 3 | AP68: 21.52 | AQ68: 20.07 | AR68: 10000
AL69: 8 | AM69: 68 | AN69: A8 | AO69: 3rd larva 3 | AP69: 21.52 | AQ69: 20.06 | AR69: 10000
AL70: 17 | AM70: 69 | AN70: B5 | AO70: 4th early larva 1 | AP70: 16.11 | AQ70: 13.87 | AR70: 100000
AL71: 18 | AM71: 70 | AN71: B6 | AO71: 4th early larva 1 | AP71: 17.31 | AQ71: 13.81 | AR71: 100000
AL72: 19 | AM72: 71 | AN72: B7 | AO72: 4th early larva 1 | AP72: 20.78 | AQ72: 17.86 | AR72: 10000
AL73: 20 | AM73: 72 | AN73: B8 | AO73: 4th early larva 1 | AP73: 20.73 | AQ73: 17.84 | AR73: 10000
AL74: 29 | AM74: 73 | AN74: C5 | AO74: 4th early larva 2 | AP74: 16.9 | AQ74: 14.34 | AR74: 100000
AL75: 30 | AM75: 74 | AN75: C6 | AO75: 4th early larva 2 | AP75: 17.82 | AQ75: 14.27 | AR75: 100000
AL76: 31 | AM76: 75 | AN76: C7 | AO76: 4th early larva 2 | AP76: 21.9 | AQ76: 18.73 | AR76: 10000
AL77: 32 | AM77: 76 | AN77: C8 | AO77: 4th early larva 2 | AP77: 21.84 | AQ77: 18.72 | AR77: 10000
AL78: 41 | AM78: 77 | AN78: D5 | AO78: 4th early larva 3 | AP78: 16.58 | AQ78: 17.57 | AR78: 100000
AL79: 42 | AM79: 78 | AN79: D6 | AO79: 4th early larva 3 | AP79: 16.05 | AQ79: 17.67 | AR79: 100000
AL80: 43 | AM80: 79 | AN80: D7 | AO80: 4th early larva 3 | AP80: 20.28 | AQ80: 21.93 | AR80: 10000
AL81: 44 | AM81: 80 | AN81: D8 | AO81: 4th early larva 3 | AP81: 20.27 | AQ81: 21.95 | AR81: 10000
AL82: 53 | AM82: 81 | AN82: E5 | AO82: 4th early larva 4 | AP82: 17.07 | AQ82: 13.92 | AR82: 100000
AL83: 54 | AM83: 82 | AN83: E6 | AO83: 4th early larva 4 | AP83: 16.69 | AQ83: 13.98 | AR83: 100000
AL84: 55 | AM84: 83 | AN84: E7 | AO84: 4th early larva 4 | AP84: 20.76 | AQ84: 17.92 | AR84: 10000
AL85: 56 | AM85: 84 | AN85: E8 | AO85: 4th early larva 4 | AP85: 20.8 | AQ85: 17.99 | AR85: 10000
AL86: 65 | AM86: 85 | AN86: F5 | AO86: 4th late larva 1 | AP86: 17.77 | AQ86: 16.65 | AR86: 100000
AL87: 66 | AM87: 86 | AN87: F6 | AO87: 4th late larva 1 | AP87: 17.77 | AQ87: 16.62 | AR87: 100000
AL88: 67 | AM88: 87 | AN88: F7 | AO88: 4th late larva 1 | AP88: 21.73 | AQ88: 20.66 | AR88: 10000
AL89: 68 | AM89: 88 | AN89: F8 | AO89: 4th late larva 1 | AP89: 21.77 | AQ89: 20.8 | AR89: 10000
AL90: 77 | AM90: 89 | AN90: G5 | AO90: 4th late larva 2 | AP90: 18.27 | AQ90: 16.13 | AR90: 100000
AL91: 78 | AM91: 90 | AN91: G6 | AO91: 4th late larva 2 | AP91: 18.17 | AQ91: 16.2 | AR91: 100000
AL92: 79 | AM92: 91 | AN92: G7 | AO92: 4th late larva 2 | AP92: 22.24 | AQ92: 20.54 | AR92: 10000
AL93: 80 | AM93: 92 | AN93: G8 | AO93: 4th late larva 2 | AP93: 22.2 | AQ93: 20.52 | AR93: 10000
AL94: 89 | AM94: 93 | AN94: H5 | AO94: 4th late larva 3 | AP94: 18.62 | AQ94: 15.38 | AR94: 100000
AL95: 90 | AM95: 94 | AN95: H6 | AO95: 4th late larva 3 | AP95: 18.63 | AQ95: 15.41 | AR95: 100000
AL96: 91 | AM96: 95 | AN96: H7 | AO96: 4th late larva 3 | AP96: 22.32 | AQ96: 19.47 | AR96: 10000
AL97: 92 | AM97: 96 | AN97: H8 | AO97: 4th late larva 3 | AP97: 22.36 | AQ97: 19.37 | AR97: 10000
AL98: 97 | AM98: 97 | AN98: I5 | AO98: 4th late larva 4 | AP98: 16.57 | AQ98: 14.49 | AR98: 100000
AL99: 98 | AM99: 98 | AN99: I6 | AO99: 4th late larva 4 | AP99: 17.26 | AQ99: 14.32 | AR99: 100000
AL100: 99 | AM100: 99 | AN100: I7 | AO100: 4th late larva 4 | AP100: 20.76 | AQ100: 18.13 | AR100: 10000
AL101: 100 | AM101: 100 | AN101: I8 | AO101: 4th late larva 4 | AP101: 20.73 | AQ101: 18.06 | AR101: 10000
AL102: 105 | AM102: 101 | AN102: J5 | AO102: pupa 1 | AP102: 18.54 | AQ102: 30.84 | AR102: 100000
AL103: 106 | AM103: 102 | AN103: J6 | AO103: pupa 1 | AP103: 19.02 | AQ103: 29.86 | AR103: 100000
AL104: 107 | AM104: 103 | AN104: J7 | AO104: pupa 1 | AP104: 22.38 | AQ104: 32.11 | AR104: 10000
AL105: 108 | AM105: 104 | AN105: J8 | AO105: pupa 1 | AP105: 22.34 | AQ105: 33.66 | AR105: 10000
AL106: 113 | AM106: 105 | AN106: K5 | AO106: pupa 2 | AP106: 18.75 | AQ106: 29.49 | AR106: 100000
AL107: 114 | AM107: 106 | AN107: K6 | AO107: pupa 2 | AP107: 18.24 | AQ107: 29.54 | AR107: 100000
AL108: 115 | AM108: 107 | AN108: K7 | AO108: pupa 2 | AP108: 21.98 | AQ108: 37.08 | AR108: 10000
AL109: 116 | AM109: 108 | AN109: K8 | AO109: pupa 2 | AP109: 22 | AR109: 10000
AL110: 121 | AM110: 109 | AN110: L5 | AO110: pupa 3 | AP110: 18.37 | AQ110: 30.17 | AR110: 100000
AL111: 122 | AM111: 110 | AN111: L6 | AO111: pupa 3 | AP111: 18.19 | AQ111: 30.27 | AR111: 100000
AL112: 123 | AM112: 111 | AN112: L7 | AO112: pupa 3 | AP112: 21.84 | AQ112: 33.9 | AR112: 10000
AL113: 124 | AM113: 112 | AN113: L8 | AO113: pupa 3 | AP113: 21.82 | AQ113: 33.5 | AR113: 10000
AL114: 129 | AM114: 113 | AN114: M5 | AO114: pupa 4 | AP114: 19.99 | AQ114: 30.95 | AR114: 100000
AL115: 130 | AM115: 114 | AN115: M6 | AO115: pupa 4 | AP115: 19.68 | AQ115: 30.84 | AR115: 100000
AL116: 131 | AM116: 115 | AN116: M7 | AO116: pupa 4 | AP116: 23.64 | AQ116: 32.88 | AR116: 10000
AL117: 132 | AM117: 116 | AN117: M8 | AO117: pupa 4 | AP117: 23.59 | AQ117: 32.27 | AR117: 10000
AL118: 137 | AM118: 117 | AN118: N5 | AO118: adult 1 | AP118: 18.03 | AQ118: 14.69 | AR118: 100000
AL119: 138 | AM119: 118 | AN119: N6 | AO119: adult 1 | AP119: 17.99 | AQ119: 14.69 | AR119: 100000
AL120: 139 | AM120: 119 | AN120: N7 | AO120: adult 1 | AP120: 21.76 | AQ120: 18.52 | AR120: 10000
AL121: 140 | AM121: 120 | AN121: N8 | AO121: adult 1 | AP121: 21.72 | AQ121: 18.55 | AR121: 10000
AL122: 147 | AM122: 121 | AN122: O5 | AO122: adult 2 | AP122: 17.19 | AQ122: 14.85 | AR122: 100000
AL123: 148 | AM123: 122 | AN123: O6 | AO123: adult 2 | AP123: 17.08 | AQ123: 14.85 | AR123: 100000
AL124: 149 | AM124: 123 | AN124: O7 | AO124: adult 2 | AP124: 20.81 | AQ124: 18.81 | AR124: 10000
AL125: 150 | AM125: 124 | AN125: O8 | AO125: adult 2 | AP125: 20.85 | AQ125: 18.75 | AR125: 10000
AL126: 159 | AM126: 125 | AN126: P5 | AO126: adult 3 | AP126: 18.61 | AQ126: 13.87 | AR126: 100000
AL127: 160 | AM127: 126 | AN127: P6 | AO127: adult 3 | AP127: 18.48 | AQ127: 13.85 | AR127: 100000
AL128: 161 | AM128: 127 | AN128: P7 | AO128: adult 3 | AP128: 22.06 | AQ128: 17.65 | AR128: 10000
AL129: 162 | AM129: 128 | AN129: P8 | AO129: adult 3 | AP129: 22.04 | AQ129: 17.64 | AR129: 10000
AL130: 9 | AM130: 129 | AN130: A9 | AO130: adult 4 | AP130: 17.53 | AQ130: 15.56 | AR130: 100000
AL131: 10 | AM131: 130 | AN131: A10 | AO131: adult 4 | AP131: 17.59 | AQ131: 15.62 | AR131: 100000
AL132: 11 | AM132: 131 | AN132: A11 | AO132: adult 4 | AP132: 20.58 | AQ132: 19.02 | AR132: 10000
AL133: 12 | AM133: 132 | AN133: A12 | AO133: adult 4 | AP133: 21.16 | AQ133: 18.98 | AR133: 10000
AL134: 21 | AM134: 133 | AN134: B9 | AO134: foregut | AP134: 18 | AQ134: 19.25 | AR134: 100000
AL135: 22 | AM135: 134 | AN135: B10 | AO135: foregut | AP135: 18.03 | AQ135: 19.24 | AR135: 100000
AL136: 23 | AM136: 135 | AN136: B11 | AO136: foregut | AP136: 21.6 | AQ136: 23.46 | AR136: 10000
AL137: 24 | AM137: 136 | AN137: B12 | AO137: foregut | AP137: 21.83 | AQ137: 23.37 | AR137: 10000
AL138: 33 | AM138: 137 | AN138: C9 | AO138: midgut | AP138: 17.91 | AQ138: 14.78 | AR138: 100000
AL139: 34 | AM139: 138 | AN139: C10 | AO139: midgut | AP139: 17.9 | AQ139: 14.79 | AR139: 100000
AL140: 35 | AM140: 139 | AN140: C11 | AO140: midgut | AP140: 21.55 | AQ140: 18.55 | AR140: 10000
AL141: 36 | AM141: 140 | AN141: C12 | AO141: midgut | AP141: 21.58 | AQ141: 18.72 | AR141: 10000
AL142: 45 | AM142: 141 | AN142: D9 | AO142: hindgut | AP142: 23.28 | AQ142: 28.99 | AR142: 100000
AL143: 46 | AM143: 142 | AN143: D10 | AO143: hindgut | AP143: 23.24 | AQ143: 29.12 | AR143: 100000
AL144: 47 | AM144: 143 | AN144: D11 | AO144: hindgut | AP144: 26.72 | AQ144: 32.76 | AR144: 10000
AL145: 48 | AM145: 144 | AN145: D12 | AO145: hindgut | AP145: 26.68 | AQ145: 33.13 | AR145: 10000
AL146: 57 | AM146: 145 | AN146: E9 | AO146: haemolymph | AP146: 17.96 | AQ146: 17.03 | AR146: 100000
AL147: 58 | AM147: 146 | AN147: E10 | AO147: haemolymph | AP147: 17.88 | AQ147: 16.92 | AR147: 100000
AL148: 59 | AM148: 147 | AN148: E11 | AO148: haemolymph | AP148: 21.6 | AQ148: 20.97 | AR148: 10000
AL149: 60 | AM149: 148 | AN149: E12 | AO149: haemolymph | AP149: 21.66 | AQ149: 20.93 | AR149: 10000
AL150: 69 | AM150: 149 | AN150: F9 | AO150: carcass | AP150: 17.33 | AQ150: 14.37 | AR150: 100000
AL151: 70 | AM151: 150 | AN151: F10 | AO151: carcass | AP151: 17.05 | AQ151: 14.29 | AR151: 100000
AL152: 71 | AM152: 151 | AN152: F11 | AO152: carcass | AP152: 20.73 | AQ152: 18.05 | AR152: 10000
AL153: 72 | AM153: 152 | AN153: F12 | AO153: carcass | AP153: 20.74 | AQ153: 17.94 | AR153: 10000
AL154: 81 | AM154: 153 | AN154: G9 | AO154: legs | AP154: 18.58 | AQ154: 15.15 | AR154: 100000
AL155: 82 | AM155: 154 | AN155: G10 | AO155: legs | AP155: 18.57 | AQ155: 15.09 | AR155: 100000
AL156: 83 | AM156: 155 | AN156: G11 | AO156: legs | AP156: 22.39 | AQ156: 19.16 | AR156: 10000
AL157: 84 | AM157: 156 | AN157: G12 | AO157: legs | AP157: 22.28 | AQ157: 19.29 | AR157: 10000
AL158: 151 | AM158: 157 | AN158: O21 | AO158: STD_10x | AP158: 17.55 | AQ158: 15.27 | AR158: 1000000 | AS158: =AVERAGE(AP158:AP159)-AVERAGE(AP160:AP161) -> -3.805 | AT158: =AVERAGE(AQ158:AQ159)-AVERAGE(AQ160:AQ161) -> -4.095
AL159: 152 | AM159: 158 | AN159: O22 | AO159: STD_10x | AP159: 17.57 | AQ159: 15.32 | AR159: 1000000
AL160: 153 | AM160: 159 | AN160: O23 | AO160: STD_100x | AP160: 21.26 | AQ160: 19.46 | AR160: 100000 | AS160: =AVERAGE(AP160:AP161)-AVERAGE(AP162:AP163) -> -3.845 | AT160: =AVERAGE(AQ160:AQ161)-AVERAGE(AQ162:AQ163) -> -3.73
AL161: 154 | AM161: 160 | AN161: O24 | AO161: STD_100x | AP161: 21.47 | AQ161: 19.32 | AR161: 100000
AL162: 163 | AM162: 161 | AN162: P21 | AO162: STD_1000x | AP162: 25.15 | AQ162: 23.12 | AR162: 10000 | AS162: =AVERAGE(AP162:AP163)-AVERAGE(AP164:AP165) -> -3.035 | AT162: =AVERAGE(AQ162:AQ163)-AVERAGE(AQ164:AQ165) -> -3.155
AL163: 164 | AM163: 162 | AN163: P22 | AO163: STD_1000x | AP163: 25.27 | AQ163: 23.12 | AR163: 10000
AL164: 165 | AM164: 163 | AN164: P23 | AO164: STD_10kx | AP164: 28.32 | AQ164: 26.18 | AR164: 1000
AL165: 166 | AM165: 164 | AN165: P24 | AO165: STD_10kx | AP165: 28.17 | AQ165: 26.37 | AR165: 1000
AL166: 141 | AM166: 165 | AN166: N23 | AO166: NTC
AL167: 142 | AM167: 166 | AN167: N24 | AO167: NTC
